bitfinex-derivatives/quotes_ETHF0:USTF0_20250518
["timestamp","ask_amount","ask_price","bid_price","bid_amount"]
[1747611109850,1.3346,2455.2,2454.7,0.12730101]
[1747611110151,0.81433,2455.0,2454.8,0.81437]
[1747611110454,0.8143,2455.1,2454.9,9.82534]
[1747611110656,0.8143,2455.1,2455.0,0.12729012]
[1747611110855,0.8143,2455.1,2455.0,0.12729011]
[1747611111053,0.8143,2455.1,2455.0,0.12728963]
[1747611111249,0.81432,2455.0,2454.9,9.011]
[1747611111450,0.81432,2455.0,2454.9,9.13829684]
[1747611111650,0.81432,2455.0,2454.9,9.95264797]
[1747611111951,3.2078,2455.0,2454.7,9.82542]
[1747611112151,3.2078,2455.0,2454.8,0.12730911]
[1747611112353,4.02212,2455.0,2454.9,0.12730911]
[1747611113655,4.02212,2455.0,2454.7,9.01]
[1747611113656,0.81438,2454.8,2454.7,9.01]
[1747611113857,2.03597,2454.8,2454.2,0.81458]
[1747611114052,0.81451,2454.4,2454.3,0.12732545]
[1747611114249,0.81465,2454.0,2453.9,9.01]
[1747611114557,0.81465,2454.0,2453.9,0.12734873]
[1747611115053,2.18885,2454.0,2453.9,0.12734873]
[1747611115264,5.24685,2454.0,2453.9,0.12734873]
[1747611115758,0.81468,2453.9,2453.8,1.19982873]
[1747611115956,0.81468,2453.9,2453.8,1.32718778]
[1747611115957,2.21148,2453.9,2453.8,1.32718778]
[1747611116150,5.26948,2453.9,2453.8,1.32718778]
[1747611116351,14.27648,2453.9,2453.8,1.19982873]
[1747611116549,19.27648,2453.9,2453.8,1.19982873]
[1747611116759,0.81483,2453.5,2453.3,0.81487]
[1747611116962,0.81481,2453.5,2453.4,0.12737762]
[1747611117153,3.87281,2453.5,2453.4,0.12737762]
[1747611117354,3.058,2453.5,2452.9,41.069]
[1747611117555,0.81495,2453.1,2453.0,0.12739036]
[1747611117753,0.81495,2453.1,2453.0,0.12739972]
[1747611118261,0.81505,2452.8,2452.7,1.19982873]
[1747611118453,0.81505,2452.8,2452.7,1.32724522]
[1747611118454,4.02285,2452.8,2452.7,1.32724522]
[1747611118652,9.02285,2452.8,2452.7,1.19982873]
[1747611119159,12.08085,2452.8,2452.7,1.19982873]
[1747611119360,0.81511,2452.6,2452.5,1.5974185]
[1747611119547,9.82211,2452.6,2452.5,1.5974185]
[1747611119748,14.82211,2452.6,2452.5,0.89446899]
[1747611120258,17.88011,2452.6,2452.5,0.05319899]
[1747611120459,2.038,2452.4,2451.6,9.01]
[1747611120653,3.2078,2451.9,2451.7,0.12746115]
[1747611120857,4.02315,2451.9,2451.8,0.12746115]
[1747611121156,12.9218,2452.3,2452.2,0.81525]
[1747611121355,4.5091,2452.7,2452.2,0.12746115]
[1747611121557,3.2078,2453.1,2452.7,0.81507]
[1747611121864,0.81498,2453.0,2452.6,9.013]
[1747611122160,3.2078,2453.1,2452.9,0.81499]
[1747611122455,3.2078,2453.1,2452.5,9.013]
[1747611122660,3.2078,2453.1,2452.8,0.81503]
[1747611122858,4.02276,2453.1,2452.8,0.81503]
[1747611123265,3.2078,2453.1,2452.6,2.03779]
[1747611123564,10.52883,2453.5,2453.2,0.81491]
[1747611123761,9.714,2453.5,2453.2,0.81491]
[1747611123960,12.9218,2453.5,2453.2,0.81491]
[1747611124159,20.07313,2453.4,2452.3,1.2022]
[1747611124461,0.81502,2452.9,2452.7,2.22947]
[1747611124662,0.81502,2452.9,2452.8,1.4144]
[1747611124856,0.81505,2452.8,2452.7,0.09218003]
[1747611125262,12.2808,2453.0,2452.7,0.09218003]
[1747611125454,12.2808,2453.0,2452.7,1.50658003]
[1747611125656,0.81505,2452.8,2452.7,1.50658003]
[1747611125855,0.81505,2452.8,2452.7,1.4144]
[1747611126463,3.2078,2453.0,2452.7,1.4144]
[1747611126762,9.714,2453.3,2453.2,0.90709003]
[1747611126967,3.2078,2453.6,2453.2,0.09218003]
[1747611127167,3.2078,2453.6,2453.2,9.10618003]
[1747611127363,3.2078,2453.6,2453.5,0.81481]
[1747611127665,1.69087303,2453.8,2453.7,0.81475]
[1747611128259,3.2078,2454.6,2453.8,2.03679]
[1747611128458,9.073,2454.5,2453.9,1.3867]
[1747611128659,0.81449,2454.5,2454.3,0.81453]
[1747611128963,4.02227,2454.6,2454.4,1.3867]
[1747611129159,3.2078,2454.6,2454.5,0.81448]
[1747611129956,3.2078,2454.6,2454.5,2.20118]
[1747611130355,3.2078,2455.0,2454.5,6.3867]
[1747611130558,3.2078,2455.2,2455.1,0.81428]
[1747611131164,3.2078,2455.2,2455.0,9.013]
[1747611131382,3.2078,2455.2,2455.0,9.82729]
[1747611132069,5.64474221,2455.6,2455.0,9.033]
[1747611132259,0.81417,2455.5,2455.1,0.12727656]
[1747611132569,3.2078,2455.8,2455.1,0.01]
[1747611132771,4.02187,2455.8,2455.5,0.81413]
[1747611132966,3.2078,2455.8,2455.5,9.013]
[1747611133160,3.2078,2456.1,2455.5,9.013]
[1747611133463,3.2078,2455.8,2455.6,9.011]
[1747611133666,3.2078,2455.8,2455.2,12.2878]
[1747611133667,0.81412,2455.6,2455.5,9.011]
[1747611134259,1.3904,2455.7,2455.1,2.08527]
[1747611134469,0.81422,2455.3,2455.2,9.011]
[1747611134665,1.3904,2455.7,2455.2,10.851]
[1747611135161,0.81417,2455.5,2455.2,11.66523]
[1747611135368,0.81418,2455.4,2455.2,11.66523]
[1747611135767,1.3904,2455.7,2455.2,11.66523]
[1747611136163,3.2078,2455.8,2455.2,10.851]
[1747611136366,3.2078,2455.8,2455.4,0.81416]
[1747611136577,3.2078,2455.8,2455.2,9.011]
[1747611136768,0.81418,2455.5,2455.2,10.691]
[1747611136968,0.81418,2455.5,2455.3,0.8142]
[1747611137270,4.02195,2455.5,2455.4,9.07]
[1747611137471,0.81415,2455.5,2455.4,9.07]
[1747611137772,1.3974,2455.7,2454.9,3.2078]
[1747611138067,0.8141,2455.7,2455.5,0.81414]
[1747611138271,3.2078,2455.8,2455.4,9.07]
[1747611138477,0.81424,2455.3,2455.1,0.81427]
[1747611138769,0.81421,2455.4,2455.2,9.88425]
[1747611138968,0.81422,2455.3,2455.2,10.84]
[1747611139169,0.81422,2455.3,2455.2,1.77]
[1747611139366,0.81432,2455.0,2454.9,9.068]
[1747611139563,0.81442,2454.7,2454.6,12.2758]
[1747611139759,0.81452,2454.4,2454.2,3.2078]
[1747611139965,0.81441,2454.8,2454.3,9.068]
[1747611140164,0.81449,2454.5,2454.3,11.80253]
[1747611140671,0.81449,2454.5,2454.3,2.73453]
[1747611140866,3.39313,2454.9,2454.4,9.068]
[1747611141073,3.39313,2454.9,2454.1,1.2085]
[1747611141074,3.2078,2454.7,2454.1,1.2085]
[1747611141370,3.2078,2454.2,2454.1,1.2085]
[1747611141573,0.81458,2454.2,2454.1,9.068]
[1747611141871,2.03654,2454.1,2453.4,5.58735684]
[1747611142067,0.81481,2453.6,2453.5,9.1505162]
[1747611142276,4.02261,2453.6,2453.5,9.1505162]
[1747611142575,4.02261,2453.6,2453.5,0.0815162]
[1747611143075,4.02261,2453.6,2453.5,6.2e-06]
[1747611143269,3.058,2453.6,2453.5,6.2e-06]
[1747611143473,3.058,2453.6,2453.5,0.8148162]
[1747611143671,3.2078,2454.3,2454.2,0.81458]
[1747611143872,1.3611,2454.8,2454.2,9.069]
[1747611144068,1.3611,2454.8,2454.3,0.81454]
[1747611144268,0.81443,2454.7,2454.4,0.8145]
[1747611144472,4.02216,2454.9,2454.6,0.81443]
[1747611144771,3.2078,2454.9,2454.7,1.3549]
[1747611144970,4.02215,2454.9,2454.7,1.3549]
[1747611145172,0.81438,2454.8,2454.7,1.3549]
[1747611145477,4.02216,2454.9,2454.7,1.3549]
[1747611145870,0.81438,2454.8,2454.7,1.3549]
[1747611146176,3.2078,2454.9,2454.7,1.3549]
[1747611146382,0.81423,2455.3,2454.7,1.3549]
[1747611146572,0.81423,2455.3,2455.0,0.8143]
[1747611146771,0.81423,2455.3,2455.1,10.4745]
[1747611146977,3.2078,2455.4,2454.5,3.2078]
[1747611147174,3.2078,2454.9,2454.8,0.81438]
[1747611147375,0.81441,2454.8,2454.6,1.4055]
[1747611147577,1.3761,2455.2,2454.6,1.4055]
[1747611147882,0.81435,2454.9,2454.6,2.21994]
[1747611148181,0.8144,2454.8,2454.6,1.4055]
[1747611148378,1.3761,2455.2,2454.6,1.4055]
[1747611148379,4.02222,2454.7,2454.6,1.4055]
[1747611148572,2.03574,2455.1,2454.6,11.28795]
[1747611148573,1.3639,2454.9,2454.6,11.28795]
[1747611148889,0.81436,2454.9,2454.6,11.28793]
[1747611149178,3.2078,2455.1,2454.6,10.4735]
[1747611149481,12.3618,2455.4,2454.6,21.3375]
[1747611149681,3.2078,2455.4,2454.6,21.3375]
[1747611149877,1.3639,2455.3,2454.9,0.81434]
[1747611150182,0.81428,2455.1,2455.0,10.4363]
[1747611150677,1.3639,2455.3,2455.0,1.3683]
[1747611150890,14.1075,2455.9,2455.1,11.10371]
[1747611151176,0.81408,2455.8,2455.5,0.81414]
[1747611151374,4.02184,2455.9,2455.7,0.81406]
[1747611151574,0.8141,2455.7,2455.2,9.068]
[1747611151783,3.2078,2455.4,2455.3,1.403]
[1747611152077,3.2078,2455.4,2454.7,2.4137]
[1747611152282,3.2078,2454.8,2454.4,50.13]
[1747611152584,0.81443,2454.7,2454.5,2.21747]
[1747611152977,0.81444,2454.7,2454.5,1.403]
[1747611153180,0.81444,2454.7,2454.5,2.21748]
[1747611153379,0.8144,2454.8,2454.5,2.21748]
[1747611153674,0.81445,2454.6,2454.5,1.403]
[1747611154079,5.41314,2454.7,2454.5,2.21746]
[1747611154275,0.81445,2454.6,2454.5,1.403]
[1747611154480,0.81445,2454.6,2454.5,10.471]
[1747611154680,2.14145,2454.6,2454.5,10.471]
[1747611155982,4.02222,2454.7,2454.5,11.41277874]
[1747611156170,0.81445,2454.6,2454.5,1.403]
[1747611156375,0.81458,2454.2,2454.1,9.068]
[1747611156683,4.02238,2454.2,2454.1,9.19534158]
[1747611156883,4.02238,2454.2,2454.1,9.068]
[1747611157784,4.02238,2454.2,2454.1,9.1953476]
[1747611158076,10.956,2454.9,2454.4,0.81449]
[1747611158077,0.81446,2454.6,2454.4,0.81449]
[1747611158283,0.81446,2454.6,2454.5,1.47692767]
[1747611158478,0.81446,2454.6,2454.5,1.47692455]
[1747611158679,4.5646,2454.8,2453.4,2.03706]
[1747611158877,0.81468,2453.9,2453.8,9.19633461]
[1747611159081,0.81468,2453.9,2453.8,3.21693461]
[1747611159384,0.81478,2453.6,2453.5,6.2e-06]
[1747611159576,4.02258,2453.6,2453.5,6.2e-06]
[1747611159776,9.02258,2453.6,2453.5,6.2e-06]
[1747611160187,0.81498,2453.0,2452.9,1.58099925]
[1747611160485,13.23078,2453.0,2452.9,1.66253539]
[1747611160679,13.23078,2453.0,2452.9,0.08153614]
[1747611160874,13.23078,2453.0,2452.2,9.069]
[1747611160875,3.2078,2453.0,2452.2,9.069]
[1747611161074,9.714,2453.1,2452.3,1.55163794]
[1747611161075,3.2078,2452.7,2452.3,1.55163794]
[1747611161280,3.2078,2452.7,2452.6,0.81511]
[1747611161688,4.02276,2453.1,2452.8,0.81502]
[1747611161882,3.2078,2453.1,2452.3,9.069]
[1747611162188,4.02292,2452.6,2452.4,1.55162764]
[1747611162388,4.02292,2452.6,2452.4,1.4242]
[1747611162585,0.81515,2452.5,2452.4,1.4242]
[1747611162781,0.81521,2452.3,2452.2,9.069]
[1747611163081,4.02303,2452.3,2451.9,1.4242]
[1747611163283,3.2078,2452.0,2451.7,10.65199925]
[1747611163482,10.03523,2452.3,2451.9,0.81535]
[1747611163679,0.81525,2452.2,2452.0,1.4242]
[1747611163880,0.81528,2452.1,2452.0,1.4242]
[1747611164283,2.15298,2452.1,2452.0,1.4242]
[1747611164689,2.15298,2452.1,2451.8,9.071]
[1747611164881,1.3377,2452.1,2451.8,9.071]
[1747611165078,1.3377,2452.1,2451.9,1.42]
[1747611165285,2.15298,2452.1,2452.0,0.09218003]
[1747611165489,2.15298,2452.1,2451.9,1.42]
[1747611165897,1.3377,2452.1,2451.4,42.2688]
[1747611166081,0.81545,2451.6,2451.5,1.42]
[1747611166281,12.4268,2451.9,2451.5,1.42]
[1747611166486,0.81543,2451.7,2451.4,0.81549]
[1747611166694,1.3377,2451.8,2450.7,5.94619925]
[1747611166892,3.2078,2450.9,2450.8,2.22759]
[1747611167087,3.2078,2450.9,2450.8,1.4119]
[1747611167288,3.2078,2450.9,2450.8,2.22761]
[1747611167897,3.2078,2450.9,2450.5,9.203]
[1747611168198,1.3898,2450.8,2450.4,1.4119]
[1747611168495,1.3898,2450.8,2450.7,0.81574]
[1747611168682,10.6098,2450.8,2450.1,5.48742324]
[1747611168898,3.2078,2450.4,2450.2,0.8159]
[1747611169195,3.2078,2450.7,2450.2,9.206]
[1747611169400,4.5976,2450.7,2450.5,0.81579]
[1747611169589,4.5976,2450.7,2450.3,1.4119]
[1747611169788,1.3898,2450.7,2450.2,0.09218003]
[1747611169983,3.2078,2450.8,2450.5,0.81578]
[1747611170201,4.548,2450.8,2450.3,1.4006]
[1747611170395,3.2078,2450.5,2450.4,0.81584]
[1747611170695,4.548,2451.6,2450.6,2.03937]
[1747611170893,0.81554,2451.4,2450.8,3.2078]
[1747611171096,4.548,2451.6,2450.9,9.206]
[1747611171294,4.548,2451.6,2451.2,0.81557]
[1747611171295,0.8155,2451.5,2451.2,0.81557]
[1747611171495,1.3402,2451.4,2451.2,0.81557]
[1747611171787,13.56607,2452.1,2451.2,0.81557]
[1747611171788,1.1297,2452.1,2451.3,17.11440903]
[1747611171992,1.1297,2452.1,2451.7,3.2078]
[1747611172196,1.94498,2452.1,2451.8,2.21596]
[1747611172391,1.1297,2452.1,2451.9,0.81534]
[1747611172595,1.94498,2452.1,2452.0,1.4006]
[1747611173198,0.81539,2451.8,2451.6,9.207]
[1747611173487,4.02317,2451.9,2451.6,1.3824]
[1747611173694,1.4195,2451.8,2451.4,1.3824]
[1747611173902,1.1297,2452.1,2451.4,3.42112]
[1747611174095,1.1297,2452.1,2451.8,0.81536]
[1747611174296,2.5492,2452.1,2451.4,3.058]
[1747611174599,0.81534,2452.0,2451.5,1.3824]
[1747611174797,1.4195,2451.9,2451.6,0.81543]
[1747611174993,1.4195,2451.9,2451.7,1.3824]
[1747611175792,1.4195,2451.9,2451.3,3.2078]
[1747611176000,0.81546,2451.6,2451.3,4.02333]
[1747611176202,0.81548,2451.5,2451.1,9.208]
[1747611176394,3.2078,2451.6,2451.2,1.3503]
[1747611176601,2.17769,2451.5,2451.2,1.3503]
[1747611176905,1.3622,2451.5,2451.2,1.3503]
[1747611177102,2.1777,2451.5,2451.2,2.16587]
[1747611177405,9.521,2451.6,2451.5,0.81548]
[1747611177606,9.513,2451.8,2451.6,0.81542]
[1747611177807,9.513,2451.8,2451.7,1.3503]
[1747611178013,10.8752,2451.8,2451.7,1.3503]
[1747611178495,10.8752,2451.8,2451.5,0.81547]
[1747611178691,10.8752,2451.8,2451.3,1.3503]
[1747611178899,0.81545,2451.6,2451.4,0.8155]
[1747611179103,10.8752,2451.8,2451.3,1.3503]
[1747611179305,0.81549,2451.5,2451.3,1.3503]
[1747611179498,1.3383,2451.4,2451.3,1.3503]
[1747611179696,2.15381,2451.4,2451.3,1.3503]
[1747611179898,1.3383,2451.4,2451.3,2.16585]
[1747611180210,9.504,2451.6,2451.4,0.8155]
[1747611180503,9.714,2452.0,2451.5,3.2078]
[1747611180797,9.714,2452.0,2451.7,0.81539]
[1747611180798,0.81531,2452.0,2451.7,0.81539]
[1747611181005,0.81543,2451.7,2451.4,0.81549]
[1747611181201,1.3383,2452.0,2451.6,0.81545]
[1747611181408,11.66363,2452.0,2451.8,0.81536]
[1747611181603,1.3383,2452.0,2451.9,2.23495]
[1747611181806,9.714,2452.5,2451.9,4.6474]
[1747611182106,14.0811,2452.7,2452.0,12.4168]
[1747611182311,11.68839,2452.7,2452.5,0.81513]
[1747611182504,1.3383,2452.7,2452.6,0.81511]
[1747611182900,3.2078,2453.0,2452.9,0.81501]
[1747611183309,2.4398,2453.7,2452.9,0.01]
[1747611183505,1.1452,2454.3,2453.6,2.03696]
[1747611183704,0.08149295,2454.2,2454.1,0.81461]
[1747611184104,0.08149295,2454.2,2454.1,2.23161]
[1747611184607,0.08149295,2454.2,2454.1,11.43961]
[1747611185105,0.08149295,2454.2,2454.1,16.43961]
[1747611185303,0.08149295,2454.2,2454.1,16.44961]
[1747611185608,0.08149295,2454.2,2454.1,16.53179003]
[1747611185804,10.3944,2454.8,2454.4,0.8145]
[1747611186000,0.81458,2454.2,2454.1,0.09218003]
[1747611186207,0.81495,2453.1,2453.0,1.18244165]
[1747611186705,9.02275,2453.1,2453.0,1.18244165]
[1747611187210,12.08075,2453.1,2453.0,1.18244165]
[1747611187513,16.69275,2453.1,2453.0,1.18244165]
[1747611188111,12.8148,2453.1,2453.0,1.18244165]
[1747611188315,3.2078,2453.1,2452.7,1.3241]
[1747611188505,3.2078,2453.1,2452.9,2.21639]
[1747611188705,0.81498,2453.0,2452.9,1.4014]
[1747611188908,0.81518,2452.5,2452.3,3.2078]
[1747611189111,0.81503,2452.9,2452.3,3.2078]
[1747611189410,4.4273,2453.0,2452.4,2.21656]
[1747611189609,0.81503,2452.9,2452.4,1.4014]
[1747611189904,2.18433,2452.9,2452.4,1.4014]
[1747611190108,1.3693,2452.9,2452.4,2.21656]
[1747611190310,3.2078,2453.1,2452.4,2.21656]
[1747611190311,3.2078,2453.1,2452.4,1.4014]
[1747611190509,9.639,2453.5,2452.9,3.2078]
[1747611190807,0.81471,2453.8,2453.5,0.81481]
[1747611191003,0.81473,2453.8,2453.6,1.4014]
[1747611191400,11.0093,2453.9,2453.6,2.21618]
[1747611191607,0.81475,2453.7,2453.6,1.4014]
[1747611191804,0.81473,2453.8,2453.6,1.4014]
[1747611192005,0.81475,2453.7,2453.6,1.4014]
[1747611192206,11.0093,2453.9,2452.4,43.9692]
[1747611192207,4.5987,2453.8,2452.8,3.2078]
[1747611192412,1.3909,2453.6,2453.0,1.3183]
[1747611192606,9.65,2453.5,2453.0,1.3183]
[1747611192806,0.81492,2453.2,2453.0,1.3183]
[1747611193015,0.8149,2453.3,2453.0,2.13328]
[1747611193204,0.81489,2453.3,2453.0,2.13328]
[1747611193410,2.20577,2453.4,2453.1,0.81494]
[1747611193611,0.81488,2453.3,2453.2,1.3183]
[1747611194109,9.65,2453.6,2453.2,1.3183]
[1747611194314,0.81483,2453.5,2453.2,2.13319]
[1747611194515,0.81483,2453.5,2453.3,1.3853]
[1747611194912,0.81485,2453.4,2453.3,1.3853]
[1747611195215,2.03712,2453.4,2452.9,9.205]
[1747611195415,3.2078,2453.0,2452.5,0.09218003]
[1747611195610,0.81511,2452.6,2452.5,1.47748003]
[1747611195817,0.81511,2452.6,2452.5,1.3853]
[1747611196011,0.81525,2452.2,2452.1,4.39024165]
[1747611196311,0.81525,2452.2,2452.1,1.18244165]
[1747611196511,10.46325,2452.2,2452.1,1.18244165]
[1747611196706,9.662,2452.7,2452.1,1.18244165]
[1747611197016,1.1302,2452.8,2452.2,3.2078]
[1747611197312,14.013,2453.4,2453.0,0.81497]
[1747611197516,0.8149,2453.3,2453.1,1.3495]
[1747611197818,0.8149,2453.3,2453.0,0.81497]
[1747611197819,0.81507,2452.8,2452.5,3.2078]
[1747611198016,0.81507,2452.8,2452.7,1.3495]
[1747611198311,3.2078,2453.5,2452.5,14.665]
[1747611198510,14.2739,2453.5,2452.7,3.2078]
[1747611198712,0.81486,2453.4,2453.1,0.81492]
[1747611198920,0.81493,2453.2,2452.9,10.48]
[1747611199115,0.81493,2453.2,2453.1,1.3495]
[1747611199315,0.81493,2453.2,2452.9,9.665]
[1747611199507,1.3531,2453.4,2453.0,1.3495]
[1747611199715,4.02263,2453.5,2453.2,0.81489]
[1747611199919,13.74463,2453.5,2453.3,1.3495]
[1747611200117,0.81485,2453.4,2453.3,1.3495]
[1747611200418,9.725,2453.6,2453.3,2.16437]
[1747611200616,0.81482,2453.5,2453.3,2.16437]
[1747611201317,1.3528,2453.6,2452.9,12.96498003]
[1747611201512,12.9258,2453.4,2452.3,3.2078]
[1747611201717,0.81521,2452.3,2452.2,1.18244165]
[1747611202119,2.16801,2452.3,2452.2,1.18244165]
[1747611202322,1.3528,2452.3,2452.2,1.18244165]
[1747611202512,1.1866,2452.7,2452.2,1.18244165]
[1747611202513,3.2078,2452.9,2452.7,0.81508]
[1747611202709,3.2078,2452.9,2452.6,0.81509]
[1747611202710,0.81502,2452.9,2452.6,0.81509]
[1747611202913,4.02282,2452.9,2452.7,1.3773]
[1747611203322,0.81505,2452.8,2452.7,1.3773]
[1747611203511,1.3528,2453.0,2452.7,1.3773]
[1747611203512,2.16779,2453.0,2452.8,0.81503]
[1747611203711,0.81505,2452.8,2452.7,1.3773]
[1747611204215,0.81504,2452.9,2452.7,1.3773]
[1747611204418,2.1678,2453.0,2452.7,1.3773]
[1747611204614,3.2078,2453.2,2452.7,1.3773]
[1747611204821,1.0746,2453.3,2452.8,0.12740325]
[1747611204822,9.727,2453.3,2452.8,0.12740325]
[1747611205022,3.2078,2453.5,2453.3,0.81486]
[1747611205224,3.2078,2453.5,2453.4,1.3485]
[1747611205617,3.2078,2453.6,2453.4,1.4758784]
[1747611205821,0.81481,2453.5,2453.4,1.3485]
[1747611206011,3.2078,2453.6,2453.4,2.16332]
[1747611206217,3.2078,2453.6,2453.5,0.81481]
[1747611206519,3.2078,2453.6,2453.5,2.26967879]
[1747611207225,4.02258,2453.6,2453.5,3.058]
[1747611208115,0.815,2453.0,2452.4,5.5322]
[1747611208321,0.81502,2452.9,2452.7,2.14257]
[1747611208621,2.23501,2452.9,2452.8,0.12739775]
[1747611209622,0.81508,2452.7,2452.6,0.09218003]
[1747611209825,4.02288,2452.7,2452.6,0.09218003]
[1747611210021,9.02288,2452.7,2452.6,0.09218003]
[1747611210224,23.17188,2452.7,2452.6,0.09218003]
[1747611210521,18.16588,2452.7,2452.6,0.09218003]
[1747611211124,14.2928,2452.7,2451.9,12.20954165]
[1747611211317,3.2078,2452.5,2452.0,0.12744144]
[1747611211527,3.2078,2452.5,2452.4,0.81518]
[1747611211824,11.63926,2452.8,2452.7,0.81508]
[1747611211825,3.2078,2452.8,2452.7,0.81508]
[1747611212021,9.721,2453.1,2453.0,0.81498]
[1747611212214,4.3864,2453.5,2453.1,0.81495]
[1747611212421,3.2078,2454.0,2453.2,1.4576887]
[1747611212620,3.2078,2454.0,2453.9,0.81468]
[1747611212821,3.2078,2454.0,2453.8,0.8147]
[1747611213017,3.2078,2454.0,2453.9,0.81468]
[1747611213716,3.2078,2454.0,2453.8,0.81469]
[1747611213929,3.2078,2454.0,2453.6,1.3303]
[1747611214230,4.89141555,2454.8,2454.7,0.81442]
[1747611214529,4.89141555,2454.8,2454.7,0.96174106]
[1747611214530,1.68361555,2454.8,2454.7,0.96174106]
[1747611214823,1.68361555,2454.8,2454.7,0.94174106]
[1747611215425,1.68361555,2454.8,2454.7,0.94171793]
[1747611215624,1.68361555,2454.8,2454.7,2.27711793]
[1747611217425,3.2078,2454.9,2454.7,1.46269673]
[1747611217627,0.81436,2454.9,2454.8,0.12729673]
[1747611217828,3.2078,2455.0,2454.6,13.53543]
[1747611217829,0.81442,2454.7,2454.6,3.058]
[1747611218016,4.02222,2454.7,2454.6,3.058]
[1747611218215,4.02222,2454.7,2454.3,10.9984]
[1747611218216,0.81451,2454.4,2454.3,10.9984]
[1747611218530,0.8146,2454.2,2453.9,9.663]
[1747611218719,3.2078,2454.0,2453.6,1.18244165]
[1747611218921,4.02255,2453.7,2453.6,1.18244165]
[1747611219116,4.02255,2453.7,2453.2,9.663]
[1747611219117,0.81484,2453.5,2453.2,9.663]
[1747611219319,3.2078,2453.7,2453.3,0.12738499]
[1747611219515,3.058,2454.0,2453.9,0.81468]
[1747611219725,3.2078,2454.7,2453.9,9.80038499]
[1747611219925,3.2078,2454.2,2454.0,0.12738499]
[1747611220124,3.2078,2454.2,2453.9,9.663]
[1747611220322,3.2078,2454.2,2454.0,0.12734755]
[1747611220625,3.2078,2454.7,2454.1,3.33514888]
[1747611220825,3.2078,2454.7,2454.5,0.81446]
[1747611221022,3.2078,2454.7,2454.6,0.94177171]
[1747611221724,3.2078,2455.0,2454.6,0.12732171]
[1747611222030,3.2078,2455.0,2454.7,1.424]
[1747611222224,3.2078,2455.0,2454.8,0.81438]
[1747611222428,3.2078,2455.0,2454.9,0.81435]
[1747611222820,3.2078,2455.0,2454.8,1.424]
[1747611223026,3.2078,2455.0,2454.6,9.662]
[1747611223424,3.2078,2455.0,2454.7,1.55131109]
[1747611223624,0.81438,2454.9,2454.7,1.424]
[1747611223831,3.2078,2455.0,2454.7,1.424]
[1747611223832,4.02214,2455.0,2454.7,1.424]
[1747611224124,3.2078,2455.0,2454.7,1.424]
[1747611224430,2.15058,2454.9,2454.7,1.424]
[1747611224626,1.3362,2454.9,2454.7,1.424]
[1747611224932,3.2078,2455.0,2454.7,1.424]
[1747611225127,3.2078,2455.0,2454.9,0.81435]
[1747611225323,3.2078,2455.0,2454.7,1.424]
[1747611225524,1.3203,2454.9,2454.7,1.424]
[1747611225725,3.2078,2455.0,2454.8,0.12730836]
[1747611226017,3.2078,2455.0,2454.9,2.23895]
[1747611226420,11.1913,2455.5,2455.3,0.81422]
[1747611226421,3.2078,2455.4,2455.3,0.81422]
[1747611226830,0.81432,2455.0,2454.9,1.4246]
[1747611227133,4.5281,2455.3,2454.9,2.36621914]
[1747611227327,0.81428,2455.1,2454.9,2.23893]
[1747611227525,4.5281,2455.3,2454.9,1.4246]
[1747611228331,0.81425,2455.2,2454.9,1.4246]
[1747611228532,3.2078,2455.0,2454.9,2.23894]
[1747611228722,1.4159,2455.2,2454.9,1.4246]
[1747611228937,3.2078,2455.3,2455.2,0.81425]
[1747611229128,3.2078,2455.3,2455.2,10.70125]
[1747611229429,3.2078,2455.3,2455.1,3.058]
[1747611229430,0.81425,2455.2,2455.1,3.058]
[1747611229732,2.23015,2455.2,2455.1,3.058]
[1747611230133,3.45154,2455.2,2454.5,2.14746]
[1747611230339,4.0222,2454.8,2454.6,0.81445]
[1747611230532,4.02218,2454.8,2454.6,0.81443]
[1747611230733,3.2078,2454.8,2454.3,9.887]
[1747611230941,0.81453,2454.4,2454.2,0.81457]
[1747611231235,0.81461,2454.1,2454.0,1.18244165]
[1747611231931,2.22081,2454.1,2454.0,1.18244165]
[1747611232127,10.27881,2454.1,2454.0,1.18244165]
[1747611232326,11.36841,2454.1,2454.0,1.18244165]
[1747611232543,5.5538,2454.1,2453.5,1.378]
[1747611232728,13.0728,2454.0,2453.7,1.378]
[1747611233232,1.1726,2454.2,2453.7,1.378]
[1747611233438,0.8146,2454.2,2453.9,0.81467]
[1747611233738,0.81468,2453.9,2453.8,9.887]
[1747611233937,0.81468,2453.9,2453.7,1.378]
[1747611233938,0.81471,2453.8,2453.7,1.378]
[1747611234137,1.3826,2453.8,2453.2,9.887]
[1747611234335,4.2974,2454.4,2453.9,0.81468]
[1747611234631,3.2078,2454.4,2454.2,0.81457]
[1747611234832,4.5904,2454.4,2454.0,1.3083]
[1747611235034,4.5904,2454.4,2454.2,0.81457]
[1747611235239,4.5904,2454.4,2453.8,9.888]
[1747611235439,0.81461,2454.2,2453.9,2.25031075]
[1747611235634,1.3826,2454.1,2454.0,0.12734075]
[1747611235939,1.3826,2454.1,2454.0,0.94199075]
[1747611236140,1.3826,2454.1,2454.0,1.43564616]
[1747611236350,3.2078,2454.7,2454.0,3.47226616]
[1747611236528,3.2078,2454.8,2454.2,2.03641]
[1747611236734,3.2078,2454.8,2454.3,11.36504616]
[1747611237039,3.2078,2454.8,2454.7,0.81442]
[1747611237238,3.2078,2454.8,2454.3,14.2957]
[1747611237535,3.2078,2454.8,2454.7,0.81442]